Workbook

Sheet haytham_problem
B1: In this worksheet the AlHazen's problem is solved by finding the total path | I1: This column | J1: The two columns | M1: RADIUS | N1: 90 | S1: =AY -> 0 | U1: S.Y.MAK RESULT
B2: length of light from A (on the left) to B on the right through a point on the circle. | I2: finds | J2: calculate the | L2: 1st point | M2: OA | N2: -60 | O2: AX | P2: =OA -> -60 | Q2: AY | R2: 0 | S2: =BY -> 52.09937778 | U2: If the floosing<0 maximum | X2: move around | AC2: 1
B3: The cases of reflection correspond to maxima or minima (like Hero's theorem) | I3: the maximum | J3: lines who join the | L3: 2nd point | M3: OB | N3: 75 | O3: BX | P3: =OB*COS(RADIANS(ANGLE)) -> 53.95048503 | Q3: BY | R3: =OB*SIN(RADIANS(ANGLE)) -> 52.09937778 | S3: =BX -> 53.95048503 | W3: ` | X3: angle | Y3: x | Z3: y | AC3: 2
H4: Number of points | I4: OR minimum | J4: points A and B to | M4: ANGLE | N4: 44 | S4: ` | U4: I = incidence angle | X4: 266 | Y4: =AX -> -60 | Z4: =AY -> 0 | AC4: 3
H5: =SUM(I7:I364) -> 4 | I5: (extrema) | J5: the points C | M5: DANG | N5: 1 | T5: NUMBER OF POINTS: | V5: =MAX(A7:A363) -> 4 | Y5: =-RADIUS*COS(RADIANS(current_angle)) -> 6.278082637 | Z5: =RADIUS*SIN(RADIANS(current_angle)) -> -89.78076452 | AC5: 4
B6: ANGLE | C6: RADIANS | D6: POSITION CX=-RADIUS*COS(ANGLE) | E6: POSITION CY=-RADIUS*SIN(ANGLE) | F6: DISTANCE CB | G6: DISTANCE CA | H6: CB+CA | I6: extremum | J6: X | K6: Y | L6: data for radii to points of reflection | Q6: extre x | R6: extre y | S6: i | U6: MAXIMUM OR MINIMUM | Y6: =BX -> 53.95048503 | Z6: =BY -> 52.09937778
A7: =V7 -> 0 | B7: =0 -> 0 | C7: =RADIANS(B7) -> 0 | D7: =-RADIUS*COS(C7) -> -90 | E7: =RADIUS*SIN(C7) -> 0 | F7: =SQRT((D7-BX)^2+((E7-BY)^2)) -> 153.088495 | G7: =SQRT((D7-AX)^2+(E7-AY)^2) -> 30 | H7: =G7+F7 -> 183.088495 | I7: 0 | J7: =IF(AND(I7=0,I8=1),AX,IF(AND(I6=1,I7=0),BX,IF(I7=1,D7,0))) -> 0 | K7: =IF(AND(I7=0,I8=1),AY,IF(AND(I6=1,I7=0),BY,IF(I7=1,E7,0))) -> 0 | L7: =IF(I7=1,D7,0) -> 0 | M7: =IF(I7=1,E7,0) -> 0 | N7: 0 | O7: =IF(I7<>0,N7,"") ->  | P7: =IF(I7<>0,H7,"") ->  | Q7: =IF(I7<>0,D7,0) -> 0 | R7: =IF(I7<>0,E7,0) -> 0 | S7: =ASIN(((D7-AX)*RADIUS*SIN(C7)-(E7-AY)*RADIUS*COS(C7))/SQRT((D7-AX)^2+(E7-AY)^2)/RADIUS) -> 0 | T7: =IF(I7<>0,RADIUS*(1/F7+1/G7)*COS(ABS(S7))-2,"") ->  | U7: =IF(T7<0,"MAXIMUM",IF(T7<>"","MINIMUM","")) ->  | V7: =IF(I7<>0,MAX(V6:V$7)+1,0) -> 0 | X7: total length | Y7: l1 | Z7: L2
A8: =V8 -> 0 | B8: =B7+DANG -> 1 | C8: =RADIANS(B8) -> 0.01745329252 | D8: -89.98629256 | E8: 1.570716579 | F8: 152.5481614 | G8: 30.02740236 | H8: =G8+F8 -> 182.5755638 | I8: =IF((H8-H7)*(H8-H9)>0,1,0) -> 0 | J8: 0 | K8: 0 | L8: =IF(I8=1,D8,0) -> 0 | M8: =IF(I8=1,E8,0) -> 0 | N8: =N7+1 -> 1 | P8: =IF(I8<>0,H8,"") ->  | Q8: 0 | R8: =IF(I8<>0,E8,0) -> 0 | S8: -0.06978661671 | V8: =IF(I8<>0,MAX(V$7:V7)+1,0) -> 0 | Y8: =SQRT((AX-Y5)^2+(AY-Z5)^2) -> 111.594668 | Z8: =SQRT((Y5-BX)^2+(Z5-BY)^2) -> 149.6750905
A9: 0 | B9: 2 | C9: 0.03490658504 | D9: -89.94517443 | E9: 3.140954703 | F9: 151.9963421 | G9: 30.10945148 | H9: =G9+F9 -> 182.1057935 | I9: =IF((H9-H8)*(H9-H10)>0,1,0) -> 0 | J9: 0 | K9: 0 | L9: 0 | M9: =IF(I9=1,E9,0) -> 0 | N9: =N8+1 -> 2 | Q9: 0 | R9: 0 | S9: -0.1394146179 | V9: =IF(I9<>0,MAX(V$7:V8)+1,0) -> 0 | X9: =X4 -> 266 | Y9: =Y8+Z8 -> 261.2697585
A10: 0 | B10: 3 | C10: 0.05235987756 | D10: -89.87665813 | E10: 4.710236062 | F10: 151.4330805 | G10: 30.24567778 | H10: 181.6787583 | I10: 0 | J10: 0 | K10: 0 | L10: 0 | M10: 0 | N10: 3 | Q10: 0 | R10: 0 | S10: -0.2087288701 | V10: =IF(I10<>0,MAX(V$7:V9)+1,0) -> 0 | W10: angle | X10: KIND OF EXTREMUM
A11: 0 | B11: 4 | C11: 0.06981317008 | D11: -89.78076452 | E11: 6.278082637 | F11: 150.858421 | G11: 30.43531267 | H11: 181.2937337 | I11: 0 | J11: 0 | K11: 0 | L11: 0 | M11: 0 | N11: 4 | Q11: 0 | R11: 0 | S11: -0.2775810149 | V11: =IF(I11<>0,MAX(V$7:V10)+1,0) -> 0 | W11: =VLOOKUP(AC2,A7:V365,2,FALSE) -> 16 | X11: =VLOOKUP(W11,B7:W365,20,FALSE) -> MAXIMUM
A12: 0 | B12: 5 | C12: 0.0872664626 | D12: -89.65752283 | E12: 7.844016847 | F12: 150.2724089 | G12: 30.67730856 | H12: 180.9497175 | I12: 0 | J12: 0 | K12: 0 | L12: 0 | M12: 0 | N12: 5 | Q12: 0 | R12: 0 | S12: -0.3458324032 | V12: =IF(I12<>0,MAX(V$7:V11)+1,0) -> 0 | W12: =VLOOKUP(AC3,A8:V366,2,FALSE) -> 51 | X12: =VLOOKUP(W12,B8:W366,20,FALSE) -> MAXIMUM
A13: 0 | B13: 6 | C13: 0.1047197551 | D13: -89.50697058 | E13: 9.407561694 | F13: 149.6750905 | G13: 30.97036535 | H13: 180.6454559 | I13: 0 | J13: 0 | K13: 0 | L13: 0 | M13: 0 | N13: 6 | Q13: 0 | R13: 0 | S13: -0.4133565354 | V13: =IF(I13<>0,MAX(V$7:V12)+1,0) -> 0 | W13: =VLOOKUP(AC4,A9:V367,2,FALSE) -> 132 | X13: MAXIMUM
A14: 0 | B14: 7 | C14: 0.1221730476 | D14: -89.32915365 | E14: 10.96824091 | F14: 149.0665129 | G14: 31.31296157 | H14: 180.3794745 | I14: 0 | J14: 0 | K14: 0 | L14: 0 | M14: 0 | N14: 7 | Q14: 0 | R14: 0 | S14: -0.4800409166 | V14: =IF(I14<>0,MAX(V$7:V13)+1,0) -> 0 | W14: =VLOOKUP(AC5,A10:V368,2,FALSE) -> 253 | X14: MAXIMUM
A15: 0 | B15: 8 | C15: 0.1396263402 | D15: -89.12412619 | E15: 12.52557909 | F15: 148.4467242 | G15: 31.70338874 | H15: 180.1501129 | I15: 0 | J15: 0 | K15: 0 | L15: 0 | M15: 0 | N15: 8 | Q15: 0 | R15: 0 | S15: -0.5457882877 | V15: =IF(I15<>0,MAX(V$7:V14)+1,0) -> 0
A16: 0 | B16: 9 | C16: 0.1570796327 | D16: -88.89195065 | E16: 14.07910185 | F16: 147.8157732 | G16: 32.1397872 | H16: 179.9555604 | I16: 0 | J16: 0 | K16: 0 | L16: 0 | M16: 0 | N16: 9 | Q16: 0 | R16: 0 | S16: -0.6105172391 | V16: =IF(I16<>0,MAX(V$7:V15)+1,0) -> 0
A17: 0 | B17: 10 | C17: 0.1745329252 | D17: -88.63269777 | E17: 15.62833599 | F17: 147.17371 | G17: 32.6201819 | H17: 179.7938919 | I17: 0 | J17: 0 | K17: 0 | L17: 0 | M17: 0 | N17: 10 | Q17: 0 | R17: 0 | S17: -0.6741622524 | V17: =IF(I17<>0,MAX(V$7:V16)+1,0) -> 0
A18: 0 | B18: 11 | C18: 0.1919862177 | D18: -88.34644651 | E18: 17.17280958 | F18: 146.5205852 | G18: 33.14251678 | H18: 179.663102 | I18: 0 | J18: 0 | K18: 0 | L18: =IF(I18=1,D18,0) -> 0 | M18: 0 | N18: 11 | Q18: 0 | R18: 0 | S18: -0.73667325 | V18: =IF(I18<>0,MAX(V$7:V17)+1,0) -> 0
A19: 0 | B19: 12 | C19: 0.2094395102 | D19: -88.03328407 | E19: 18.71205217 | F19: 145.8564507 | G19: 33.7046868 | H19: 179.5611374 | I19: 0 | J19: =IF(AND(I19=0,I20=1),AX,IF(AND(I18=1,I19=0),BX,IF(I19=1,D19,0))) -> 0 | K19: 0 | L19: 0 | M19: 0 | N19: 12 | Q19: 0 | R19: 0 | S19: -0.7980147448 | V19: =IF(I19<>0,MAX(V$7:V18)+1,0) -> 0
A20: 0 | B20: 13 | C20: 0.2268928028 | D20: -87.69330583 | E20: 20.24559489 | F20: 145.1813589 | G20: 34.30456676 | H20: 179.4859257 | I20: 0 | J20: =IF(AND(I20=0,I21=1),AX,IF(AND(I19=1,I20=0),BX,IF(I20=1,D20,0))) -> 0 | K20: 0 | L20: 0 | M20: 0 | N20: 13 | Q20: =IF(I20<>0,D20,0) -> 0 | R20: 0 | S20: -0.8581646931 | V20: =IF(I20<>0,MAX(V$7:V19)+1,0) -> 0
A21: 0 | B21: 14 | C21: 0.2443460953 | D21: -87.32661536 | E21: 21.7729706 | F21: 144.4953635 | G21: 34.94003658 | H21: 179.4354001 | I21: 0 | J21: =IF(AND(I21=0,I22=1),AX,IF(AND(I20=1,I21=0),BX,IF(I21=1,D21,0))) -> 0 | K21: 0 | L21: 0 | M21: 0 | N21: 14 | Q21: =IF(I21<>0,D21,0) -> 0 | R21: 0 | S21: -0.9171131502 | V21: =IF(I21<>0,MAX(V$7:V20)+1,0) -> 0
A22: 0 | B22: 15 | C22: 0.2617993878 | D22: -86.93332437 | E22: 23.29371406 | F22: 143.7985188 | G22: 35.60900274 | H22: 179.4075215 | I22: 0 | J22: -60 | K22: 0 | L22: 0 | M22: 0 | N22: 15 | Q22: 0 | R22: 0 | S22: -0.974860818 | V22: =IF(I22<>0,MAX(V$7:V21)+1,0) -> 0
A23: 1 | B23: 16 | C23: 0.2792526803 | D23: -86.51355263 | E23: 24.80736202 | F23: 143.0908802 | G23: 36.30941591 | H23: 179.4002961 | I23: 1 | J23: -86.51355263 | K23: 24.80736202 | L23: -86.51355263 | M23: 24.80736202 | N23: 16 | O23: 16 | P23: 179.4002961 | Q23: -86.51355263 | R23: 24.80736202 | S23: -1.031417562 | T23: -0.4038928449 | U23: MAXIMUM | V23: =IF(I23<>0,MAX(V$7:V22)+1,0) -> 1
A24: 0 | B24: 17 | C24: 0.2967059728 | D24: -86.06742804 | E24: 26.31345343 | F24: 142.3725039 | G24: 37.03928503 | H24: 179.411789 | I24: 0 | J24: 53.95048503 | K24: 52.09937778 | L24: 0 | M24: 0 | N24: 17 | Q24: 0 | R24: 0 | S24: -1.086800956 | V24: =IF(I24<>0,MAX(V$7:V23)+1,0) -> 0
A25: 0 | B25: 18 | C25: 0.3141592654 | D25: -85.59508647 | E25: 27.81152949 | F25: 141.6434471 | G25: 37.796688 | H25: 179.4401351 | I25: 0 | J25: 0 | K25: 0 | L25: 0 | M25: 0 | N25: 18 | Q25: 0 | R25: 0 | S25: -1.141034909 | V25: =IF(I25<>0,MAX(V$7:V24)+1,0) -> 0
A26: 0 | B26: 19 | C26: 0.3316125579 | D26: -85.0966718 | E26: 29.3011339 | F26: 140.9037677 | G26: 38.57977946 | H26: 179.4835471 | I26: 0 | J26: 0 | K26: 0 | L26: 0 | M26: 0 | N26: 19 | Q26: 0 | R26: 0 | S26: -1.194148385 | V26: =IF(I26<>0,MAX(V$7:V25)+1,0) -> 0
A27: 0 | B27: 20 | C27: 0.3490658504 | D27: -84.57233587 | E27: 30.7818129 | F27: 140.1535247 | G27: 39.38679595 | H27: 179.5403206 | I27: 0 | J27: 0 | K27: 0 | L27: 0 | M27: 0 | N27: 20 | Q27: 0 | R27: 0 | S27: -1.246174264 | V27: =IF(I27<>0,MAX(V$7:V26)+1,0) -> 0
A28: 0 | B28: 21 | C28: 0.3665191429 | D28: -84.02223838 | E28: 32.25311546 | F28: 139.3927779 | G28: 40.2160589 | H28: 179.6088368 | I28: 0 | J28: 0 | K28: 0 | L28: 0 | M28: 0 | N28: 21 | Q28: 0 | R28: 0 | S28: -1.297148323 | V28: =IF(I28<>0,MAX(V$7:V27)+1,0) -> 0
A29: 0 | B29: 22 | C29: 0.3839724354 | D29: -83.44654691 | E29: 33.71459341 | F29: 138.6215881 | G29: 41.06597583 | H29: 179.6875639 | I29: 0 | J29: 0 | K29: 0 | L29: 0 | M29: 0 | N29: 22 | Q29: 0 | R29: 0 | S29: -1.34710836 | V29: =IF(I29<>0,MAX(V$7:V28)+1,0) -> 0
A30: 0 | B30: 23 | C30: 0.401425728 | D30: -82.84543681 | E30: 35.16580156 | F30: 137.8400168 | G30: 41.93504003 | H30: 179.7750568 | I30: 0 | J30: 0 | K30: 0 | L30: 0 | M30: 0 | N30: 23 | Q30: 0 | R30: 0 | S30: -1.396093443 | V30: =IF(I30<>0,MAX(V$7:V29)+1,0) -> 0
A31: 0 | B31: 24 | C31: 0.4188790205 | D31: -82.21909119 | E31: 36.60629788 | F31: 137.0481266 | G31: 42.82182922 | H31: 179.8699558 | I31: 0 | J31: 0 | K31: 0 | L31: 0 | M31: 0 | N31: 24 | Q31: 0 | R31: 0 | S31: -1.444143277 | V31: =IF(I31<>0,MAX(V$7:V30)+1,0) -> 0
A32: 0 | B32: 25 | C32: 0.436332313 | D32: -81.56770083 | E32: 38.03564356 | F32: 136.2459809 | G32: 43.72500314 | H32: 179.9709841 | I32: 0 | J32: 0 | K32: 0 | L32: 0 | M32: 0 | N32: 25 | Q32: 0 | R32: 0 | S32: -1.491297694 | V32: =IF(I32<>0,MAX(V$7:V31)+1,0) -> 0
A33: 0 | B33: 26 | C33: 0.4537856055 | D33: -80.89146417 | E33: 39.45340321 | F33: 135.433644 | G33: 44.64330073 | H33: 180.0769448 | I33: 0 | J33: 0 | K33: 0 | L33: 0 | M33: 0 | N33: 26 | Q33: 0 | R33: 0 | S33: -1.537596222 | V33: =IF(I33<>0,MAX(V$7:V32)+1,0) -> 0
A34: 0 | B34: 27 | C34: 0.471238898 | D34: -80.19058718 | E34: 40.85914498 | F34: 134.6111811 | G34: 45.57553663 | H34: 180.1867178 | I34: 0 | J34: 0 | K34: 0 | L34: 0 | M34: 0 | N34: 27 | Q34: 0 | R34: 0 | S34: -1.558514896 | V34: =IF(I34<>0,MAX(V$7:V33)+1,0) -> 0
A35: 0 | B35: 28 | C35: 0.4886921906 | D35: -79.46528336 | E35: 42.25244065 | F35: 133.7786583 | G35: 46.52059756 | H35: 180.2992559 | I35: 0 | J35: 0 | K35: 0 | L35: 0 | M35: 0 | N35: 28 | Q35: 0 | R35: 0 | S35: -1.513812349 | V35: =IF(I35<>0,MAX(V$7:V34)+1,0) -> 0
A36: 0 | B36: 29 | C36: 0.5061454831 | D36: -78.71577364 | E36: 43.63286582 | F36: 132.9361426 | G36: 47.47743846 | H36: 180.4135811 | I36: 0 | J36: 0 | K36: 0 | L36: 0 | M36: 0 | N36: 29 | Q36: 0 | R36: 0 | S36: -1.469851881 | V36: =IF(I36<>0,MAX(V$7:V35)+1,0) -> 0
A37: 0 | B37: 30 | C37: 0.5235987756 | D37: -77.94228634 | E37: 45 | F37: 132.0837019 | G37: 48.44507859 | H37: 180.5287805 | I37: 0 | J37: 0 | K37: 0 | L37: 0 | M37: 0 | N37: 30 | Q37: 0 | R37: 0 | S37: -1.426597814 | V37: =IF(I37<>0,MAX(V$7:V36)+1,0) -> 0
A38: 0 | B38: 31 | C38: 0.5410520681 | D38: -77.14505706 | E38: 46.35342674 | F38: 131.2214049 | G38: 49.42259759 | H38: 180.6440025 | I38: 0 | J38: 0 | K38: 0 | L38: 0 | M38: 0 | N38: 31 | Q38: 0 | R38: 0 | S38: -1.384015807 | V38: =IF(I38<>0,MAX(V$7:V37)+1,0) -> 0
A39: 0 | B39: 32 | C39: 0.5585053606 | D39: -76.32432865 | E39: 47.69273378 | F39: 130.3493214 | G39: 50.40913173 | H39: 180.7584531 | I39: 0 | J39: 0 | K39: 0 | L39: 0 | M39: 0 | N39: 32 | Q39: 0 | R39: 0 | S39: -1.342072915 | V39: =IF(I39<>0,MAX(V$7:V38)+1,0) -> 0
A40: 0 | B40: 33 | C40: 0.5759586532 | D40: -75.48035112 | E40: 49.01751315 | F40: 129.4675219 | G40: 51.40387015 | H40: 180.8713921 | I40: 0 | J40: 0 | K40: 0 | L40: 0 | M40: 0 | N40: 33 | Q40: 0 | R40: 0 | S40: -1.300737627 | V40: =IF(I40<>0,MAX(V$7:V39)+1,0) -> 0
A41: 0 | B41: 34 | C41: 0.5934119457 | D41: -74.61338153 | E41: 50.32736131 | F41: 128.576078 | G41: 52.40605133 | H41: 180.9821293 | I41: 0 | J41: 0 | K41: 0 | L41: 0 | M41: 0 | N41: 34 | Q41: 0 | R41: 0 | S41: -1.259979871 | V41: =IF(I41<>0,MAX(V$7:V40)+1,0) -> 0
A42: 0 | B42: 35 | C42: 0.6108652382 | D42: -73.72368399 | E42: 51.62187927 | F42: 127.6750619 | G42: 53.41495972 | H42: 181.0900216 | I42: 0 | J42: 0 | K42: 0 | L42: 0 | M42: 0 | N42: 35 | Q42: 0 | R42: 0 | S42: -1.219771011 | V42: =IF(I42<>0,MAX(V$7:V41)+1,0) -> 0
A43: 0 | B43: 36 | C43: 0.6283185307 | D43: -72.81152949 | E43: 52.90067271 | F43: 126.7645471 | G43: 54.42992248 | H43: 181.1944696 | I43: 0 | J43: 0 | K43: 0 | L43: 0 | M43: 0 | N43: 36 | Q43: 0 | R43: 0 | S43: -1.180083821 | V43: =IF(I43<>0,MAX(V$7:V42)+1,0) -> 0
A44: 0 | B44: 37 | C44: 0.6457718232 | D44: -71.8771959 | E44: 54.16335208 | F44: 125.8446077 | G44: 55.4503065 | H44: 181.2949142 | I44: 0 | J44: 0 | K44: 0 | L44: 0 | M44: 0 | N44: 37 | Q44: 0 | R44: 0 | S44: -1.140892455 | V44: =IF(I44<>0,MAX(V$7:V43)+1,0) -> 0
A45: 0 | B45: 38 | C45: 0.6632251158 | D45: -70.92096782 | E45: 55.40953278 | F45: 124.9153188 | G45: 56.47551559 | H45: 181.3908344 | I45: 0 | J45: 0 | K45: 0 | L45: 0 | M45: 0 | N45: 38 | Q45: 0 | R45: 0 | S45: -1.102172399 | V45: =IF(I45<>0,MAX(V$7:V44)+1,0) -> 0
A46: 0 | B46: 39 | C46: 0.6806784083 | D46: -69.94313653 | E46: 56.63883519 | F46: 123.9767564 | G46: 57.50498775 | H46: 181.4817442 | I46: 0 | J46: 0 | K46: 0 | L46: 0 | M46: 0 | N46: 39 | Q46: 0 | R46: 0 | S46: -1.063900429 | V46: =IF(I46<>0,MAX(V$7:V45)+1,0) -> 0
A47: 0 | B47: 40 | C47: 0.6981317008 | D47: -68.94399988 | E47: 57.85088487 | F47: 123.0289976 | G47: 58.53819278 | H47: 181.5671904 | I47: 0 | J47: 0 | K47: 0 | L47: 0 | M47: 0 | N47: 40 | Q47: 0 | R47: 0 | S47: -1.02605456 | V47: =IF(I47<>0,MAX(V$7:V46)+1,0) -> 0
A48: 0 | B48: 41 | C48: 0.7155849933 | D48: -67.92386222 | E48: 59.04531261 | F48: 122.0721202 | G48: 59.57462995 | H48: 181.6467501 | I48: 0 | J48: 0 | K48: 0 | L48: 0 | M48: 0 | N48: 41 | Q48: 0 | R48: 0 | S48: -0.9886139856 | V48: =IF(I48<>0,MAX(V$7:V47)+1,0) -> 0
A49: 0 | B49: 42 | C49: 0.7330382858 | D49: -66.88303429 | E49: 60.22175457 | F49: 121.106203 | G49: 60.61382586 | H49: 181.7200288 | I49: 0 | J49: 0 | K49: 0 | L49: 0 | M49: 0 | N49: 42 | O49: =IF(I49<>0,N49,"") ->  | Q49: 0 | R49: 0 | S49: -0.9515590314 | V49: =IF(I49<>0,MAX(V$7:V48)+1,0) -> 0
A50: 0 | B50: 43 | C50: 0.7504915784 | D50: -65.82183315 | E50: 61.37985241 | F50: 120.1313257 | G50: 61.65533247 | H50: 181.7866582 | I50: 0 | J50: 0 | K50: 0 | L50: 0 | M50: 0 | N50: 43 | O50: =IF(I50<>0,N50,"") ->  | Q50: 0 | R50: 0 | S50: -0.9148710936 | V50: =IF(I50<>0,MAX(V$7:V49)+1,0) -> 0
A51: 0 | B51: 44 | C51: 0.7679448709 | D51: -64.74058203 | E51: 62.51925334 | F51: 119.147569 | G51: 62.69872532 | H51: 181.8462943 | I51: 0 | J51: 0 | K51: 0 | L51: 0 | M51: 0 | N51: 44 | Q51: 0 | R51: 0 | S51: -0.8785325869 | V51: =IF(I51<>0,MAX(V$7:V50)+1,0) -> 0
A52: 0 | B52: 45 | C52: 0.7853981634 | D52: -63.63961031 | E52: 63.63961031 | F52: 118.1550146 | G52: 63.74360174 | H52: 181.8986164 | I52: 0 | J52: 0 | K52: 0 | L52: 0 | M52: 0 | N52: 45 | Q52: 0 | R52: 0 | S52: -0.8425268904 | V52: =IF(I52<>0,MAX(V$7:V51)+1,0) -> 0
A53: 0 | B53: 46 | C53: 0.8028514559 | D53: -62.51925334 | E53: 64.74058203 | F53: 117.1537451 | G53: 64.7895794 | H53: 181.9433245 | I53: 0 | J53: 0 | K53: 0 | L53: 0 | M53: 0 | N53: 46 | Q53: 0 | R53: 0 | S53: -0.8068382951 | V53: =IF(I53<>0,MAX(V$7:V52)+1,0) -> 0
A54: 0 | B54: 47 | C54: 0.8203047484 | D54: -61.37985241 | E54: 65.82183315 | F54: 116.1438441 | G54: 65.83629479 | H54: 181.9801388 | I54: 0 | J54: 0 | K54: 0 | L54: 0 | M54: 0 | N54: 47 | Q54: 0 | R54: 0 | S54: -0.7714519537 | V54: =IF(I54<>0,MAX(V$7:V53)+1,0) -> 0
A55: 0 | B55: 48 | C55: 0.837758041 | D55: -60.22175457 | E55: 66.88303429 | F55: 115.125396 | G55: 66.88340191 | H55: 182.0087979 | I55: 0 | J55: 0 | K55: 0 | L55: 0 | M55: 0 | N55: 48 | Q55: 0 | R55: 0 | S55: -0.7363538316 | V55: =IF(I55<>0,MAX(V$7:V54)+1,0) -> 0
A56: 0 | B56: 49 | C56: 0.8552113335 | D56: -59.04531261 | E56: 67.92386222 | F56: 114.0984864 | G56: 67.93057108 | H56: 182.0290574 | I56: 0 | J56: 0 | K56: 0 | L56: 0 | M56: 0 | N56: 49 | Q56: 0 | R56: 0 | S56: -0.701530661 | V56: =IF(I56<>0,MAX(V$7:V55)+1,0) -> 0
A57: 0 | B57: 50 | C57: 0.872664626 | D57: -57.85088487 | E57: 68.94399988 | F57: 113.0632018 | G57: 68.97748774 | H57: 182.0406896 | I57: 0 | J57: -60 | K57: 0 | L57: 0 | M57: 0 | N57: 50 | Q57: 0 | R57: 0 | S57: -0.6669698963 | V57: =IF(I57<>0,MAX(V$7:V56)+1,0) -> 0
A58: 2 | B58: 51 | C58: 0.8901179185 | D58: -56.63883519 | E58: 69.94313653 | F58: 112.0196299 | G58: 70.02385148 | H58: 182.0434813 | I58: 1 | J58: -56.63883519 | K58: 69.94313653 | L58: -56.63883519 | M58: 69.94313653 | N58: 51 | O58: 51 | P58: 182.0434813 | Q58: -56.63883519 | R58: 69.94313653 | S58: -0.6326596721 | T58: -0.3155461462 | U58: MAXIMUM | V58: =IF(I58<>0,MAX(V$7:V57)+1,0) -> 2
A59: 0 | B59: 52 | C59: 0.907571211 | D59: -55.40953278 | E59: 70.92096782 | F59: 110.9678591 | G59: 71.06937503 | H59: 182.0372341 | I59: 0 | J59: 53.95048503 | K59: 52.09937778 | L59: 0 | M59: 0 | N59: 52 | Q59: 0 | R59: 0 | S59: -0.5985887634 | V59: =IF(I59<>0,MAX(V$7:V58)+1,0) -> 0
A60: 0 | B60: 53 | C60: 0.9250245036 | D60: -54.16335208 | E60: 71.8771959 | F60: 109.9079791 | G60: 72.11378336 | H60: 182.0217624 | I60: 0 | J60: 0 | K60: 0 | L60: 0 | M60: 0 | N60: 53 | Q60: 0 | R60: 0 | S60: -0.5647465477 | V60: =IF(I60<>0,MAX(V$7:V59)+1,0) -> 0
A61: 0 | B61: 54 | C61: 0.9424777961 | D61: -52.90067271 | E61: 72.81152949 | F61: 108.8400806 | G61: 73.15681291 | H61: 181.9968935 | I61: 0 | J61: 0 | K61: 0 | L61: 0 | M61: 0 | N61: 54 | Q61: 0 | R61: 0 | S61: -0.5311229695 | V61: =IF(I61<>0,MAX(V$7:V60)+1,0) -> 0
A62: 0 | B62: 55 | C62: 0.9599310886 | D62: -51.62187927 | E62: 73.72368399 | F62: 107.7642553 | G62: 74.19821081 | H62: 181.9624661 | I62: 0 | J62: 0 | K62: 0 | L62: 0 | M62: 0 | N62: 55 | Q62: 0 | R62: 0 | S62: -0.4977085069 | V62: =IF(I62<>0,MAX(V$7:V61)+1,0) -> 0
A63: 0 | B63: 56 | C63: 0.9773843811 | D63: -50.32736131 | E63: 74.61338153 | F63: 106.6805962 | G63: 75.23773417 | H63: 181.9183303 | I63: 0 | J63: 0 | K63: 0 | L63: 0 | M63: 0 | N63: 56 | Q63: 0 | R63: 0 | S63: -0.4644941397 | V63: =IF(I63<>0,MAX(V$7:V62)+1,0) -> 0
A64: 0 | B64: 57 | C64: 0.9948376736 | D64: -49.01751315 | E64: 75.48035112 | F64: 105.5891972 | G64: 76.27514944 | H64: 181.8643466 | I64: 0 | J64: 0 | K64: 0 | L64: 0 | M64: 0 | N64: 57 | Q64: 0 | R64: 0 | S64: -0.4314713199 | V64: =IF(I64<>0,MAX(V$7:V63)+1,0) -> 0
A65: 0 | B65: 58 | C65: 1.012290966 | D65: -47.69273378 | E65: 76.32432865 | F65: 104.4901535 | G65: 77.31023183 | H65: 181.8003853 | I65: 0 | J65: 0 | K65: 0 | L65: 0 | M65: 0 | N65: 58 | Q65: 0 | R65: 0 | S65: -0.3986319437 | V65: =IF(I65<>0,MAX(V$7:V64)+1,0) -> 0
A66: 0 | B66: 59 | C66: 1.029744259 | D66: -46.35342674 | E66: 77.14505706 | F66: 103.3835614 | G66: 78.34276476 | H66: 181.7263262 | I66: 0 | J66: 0 | K66: 0 | L66: 0 | M66: 0 | N66: 59 | Q66: 0 | R66: 0 | S66: -0.3659683253 | V66: =IF(I66<>0,MAX(V$7:V65)+1,0) -> 0
A67: 0 | B67: 60 | C67: 1.047197551 | D67: -45 | E67: 77.94228634 | F67: 102.2695185 | G67: 79.37253933 | H67: 181.6420578 | I67: 0 | J67: 0 | K67: 0 | L67: 0 | M67: 0 | N67: 60 | Q67: 0 | R67: 0 | S67: -0.3334731723 | V67: =IF(I67<>0,MAX(V$7:V66)+1,0) -> 0
A68: 0 | B68: 61 | C68: 1.064650844 | D68: -43.63286582 | E68: 78.71577364 | F68: 101.1481235 | G68: 80.39935386 | H68: 181.5474774 | I68: 0 | J68: 0 | K68: 0 | L68: 0 | M68: 0 | N68: 61 | Q68: 0 | R68: 0 | S68: -0.3011395624 | V68: =IF(I68<>0,MAX(V$7:V67)+1,0) -> 0
A69: 0 | B69: 62 | C69: 1.082104136 | D69: -42.25244065 | E69: 79.46528336 | F69: 100.0194766 | G69: 81.42301347 | H69: 181.4424901 | I69: 0 | J69: 0 | K69: 0 | L69: 0 | M69: 0 | N69: 62 | Q69: 0 | R69: 0 | S69: -0.2689609221 | V69: =IF(I69<>0,MAX(V$7:V68)+1,0) -> 0
A70: 0 | B70: 63 | C70: 1.099557429 | D70: -40.85914498 | E70: 80.19058718 | F70: 98.88367907 | G70: 82.44332964 | H70: 181.3270087 | I70: 0 | J70: 0 | K70: 0 | L70: 0 | M70: 0 | N70: 63 | Q70: 0 | R70: 0 | S70: -0.2369310064 | V70: =IF(I70<>0,MAX(V$7:V69)+1,0) -> 0
A71: 0 | B71: 64 | C71: 1.117010721 | D71: =-RADIUS*COS(C71) -> -39.45340321 | E71: =RADIUS*SIN(C71) -> 80.89146417 | F71: =SQRT((D71-BX)^2+((E71-BY)^2)) -> 97.74083372 | G71: =SQRT((D71-AX)^2+(E71-AY)^2) -> 83.46011991 | H71: 181.2009536 | I71: 0 | J71: =IF(AND(I71=0,I72=1),AX,IF(AND(I70=1,I71=0),BX,IF(I71=1,D71,0))) -> 0 | K71: =IF(AND(I71=0,I72=1),AY,IF(AND(I70=1,I71=0),BY,IF(I71=1,E71,0))) -> 0 | L71: 0 | M71: 0 | N71: 64 | Q71: 0 | R71: 0 | S71: =ASIN(((D71-AX)*RADIUS*SIN(C71)-(E71-AY)*RADIUS*COS(C71))/SQRT((D71-AX)^2+(E71-AY)^2)/RADIUS) -> -0.2050438793 | T71: =IF(I71<>0,RADIUS*(1/F71+1/G71)*COS(ABS(S71))-2,"") ->  | U71: =IF(T71<0,"MAXIMUM",IF(T71<>"","MINIMUM","")) ->  | V71: =IF(I71<>0,MAX(V$7:V70)+1,0) -> 0
A72: =V72 -> 0 | B72: =B71+DANG -> 65 | C72: =RADIANS(B72) -> 1.134464014 | D72: -38.03564356 | E72: 81.56770083 | F72: 96.59104469 | G72: 84.47320743 | H72: 181.0642521 | I72: 0 | J72: 0 | K72: 0 | L72: =IF(I72=1,D72,0) -> 0 | M72: 0 | N72: 65 | P72: =IF(I72<>0,H72,"") ->  | Q72: 0 | R72: =IF(I72<>0,E72,0) -> 0 | S72: -0.1732938965 | V72: =IF(I72<>0,MAX(V$7:V71)+1,0) -> 0
A73: 0 | B73: 66 | C73: 1.151917306 | D73: -36.60629788 | E73: 82.21909119 | F73: 95.43441761 | G73: 85.48242074 | H73: =G73+F73 -> 180.9168383 | I73: =IF((H73-H72)*(H73-H74)>0,1,0) -> 0 | J73: 0 | K73: 0 | L73: 0 | M73: =IF(I73=1,E73,0) -> 0 | N73: =N72+1 -> 66 | Q73: 0 | R73: 0 | S73: -0.1416756883 | V73: =IF(I73<>0,MAX(V$7:V72)+1,0) -> 0
A74: 0 | B74: 67 | C74: 1.169370599 | D74: -35.16580156 | E74: 82.84543681 | F74: 94.27105962 | G74: 86.4875934 | H74: 180.758653 | I74: 0 | J74: 0 | K74: 0 | L74: 0 | M74: 0 | N74: 67 | Q74: 0 | R74: 0 | S74: -0.1101841443 | V74: =IF(I74<>0,MAX(V$7:V73)+1,0) -> 0
A75: 0 | B75: 68 | C75: 1.186823891 | D75: -33.71459341 | E75: 83.44654691 | F75: 93.10107942 | G75: 87.48856377 | H75: 180.5896432 | I75: 0 | J75: 0 | K75: 0 | L75: 0 | M75: 0 | N75: 68 | Q75: 0 | R75: 0 | S75: -0.07881439829 | V75: =IF(I75<>0,MAX(V$7:V74)+1,0) -> 0
A76: 0 | B76: 69 | C76: 1.204277184 | D76: -32.25311546 | E76: 84.02223838 | F76: 91.92458738 | G76: 88.48517472 | H76: 180.4097621 | I76: 0 | J76: 0 | K76: 0 | L76: 0 | M76: 0 | N76: 69 | Q76: 0 | R76: 0 | S76: -0.04756181491 | V76: =IF(I76<>0,MAX(V$7:V75)+1,0) -> 0
A77: 0 | B77: 70 | C77: 1.221730476 | D77: -30.7818129 | E77: 84.57233587 | F77: 90.74169559 | G77: 89.47727338 | H77: 180.218969 | I77: 0 | J77: 0 | K77: 0 | L77: 0 | M77: 0 | N77: 70 | Q77: 0 | R77: 0 | S77: -0.01642197636 | V77: =IF(I77<>0,MAX(V$7:V76)+1,0) -> 0
A78: 0 | B78: 71 | C78: 1.239183769 | D78: -29.3011339 | E78: 85.0966718 | F78: 89.55251792 | G78: 90.46471098 | H78: 180.0172289 | I78: 0 | J78: 0 | K78: 0 | L78: 0 | M78: 0 | N78: 71 | Q78: 0 | R78: 0 | S78: 0.01460932948 | V78: =IF(I78<>0,MAX(V$7:V77)+1,0) -> 0
A79: 0 | B79: 72 | C79: 1.256637061 | D79: -27.81152949 | E79: 85.59508647 | F79: 88.35717016 | G79: 91.44734256 | H79: 179.8045127 | I79: 0 | J79: 0 | K79: 0 | L79: 0 | M79: 0 | N79: 72 | Q79: 0 | R79: 0 | S79: 0.04553612052 | V79: =IF(I79<>0,MAX(V$7:V78)+1,0) -> 0
A80: 0 | B80: 73 | C80: 1.274090354 | D80: -26.31345343 | E80: 86.06742804 | F80: 87.15577005 | G80: 92.42502685 | H80: 179.5807969 | I80: 0 | J80: 0 | K80: 0 | L80: 0 | M80: 0 | N80: 73 | Q80: 0 | R80: 0 | S80: 0.07636223106 | V80: =IF(I80<>0,MAX(V$7:V79)+1,0) -> 0
A81: 0 | B81: 74 | C81: 1.291543646 | D81: -24.80736202 | E81: 86.51355263 | F81: 85.94843746 | G81: 93.39762608 | H81: 179.3460635 | I81: 0 | J81: 0 | K81: 0 | L81: 0 | M81: 0 | N81: 74 | Q81: 0 | R81: 0 | S81: 0.1070913218 | V81: =IF(I81<>0,MAX(V$7:V80)+1,0) -> 0
A82: 0 | B82: 75 | C82: 1.308996939 | D82: -23.29371406 | E82: 86.93332437 | F82: 84.73529446 | G82: 94.36500576 | H82: 179.1003002 | I82: 0 | J82: 0 | K82: 0 | L82: 0 | M82: 0 | N82: 75 | Q82: 0 | R82: 0 | S82: 0.1377268894 | V82: =IF(I82<>0,MAX(V$7:V81)+1,0) -> 0
A83: 0 | B83: 76 | C83: 1.326450232 | D83: -21.7729706 | E83: 87.32661536 | F83: 83.51646544 | G83: 95.32703461 | H83: 178.8435001 | I83: 0 | J83: 0 | K83: 0 | L83: 0 | M83: 0 | N83: 76 | Q83: 0 | R83: 0 | S83: 0.168272275 | V83: =IF(I83<>0,MAX(V$7:V82)+1,0) -> 0
A84: 0 | B84: 77 | C84: 1.343903524 | D84: -20.24559489 | E84: 87.69330583 | F84: 82.29207731 | G84: 96.28358434 | H84: 178.5756617 | I84: 0 | J84: 0 | K84: 0 | L84: 0 | M84: 0 | N84: 77 | Q84: 0 | R84: 0 | S84: 0.1987306727 | V84: =IF(I84<>0,MAX(V$7:V83)+1,0) -> 0
A85: 0 | B85: 78 | C85: 1.361356817 | D85: -18.71205217 | E85: 88.03328407 | F85: 81.06225961 | G85: 97.23452956 | H85: 178.2967892 | I85: 0 | J85: 0 | K85: 0 | L85: 0 | M85: 0 | N85: 78 | Q85: =IF(I85<>0,D85,0) -> 0 | R85: 0 | S85: 0.2291051374 | V85: =IF(I85<>0,MAX(V$7:V84)+1,0) -> 0
A86: 0 | B86: 79 | C86: 1.378810109 | D86: -17.17280958 | E86: 88.34644651 | F86: 79.82714468 | G86: 98.17974766 | H86: 178.0068923 | I86: 0 | J86: 0 | K86: 0 | L86: 0 | M86: 0 | N86: 79 | Q86: 0 | R86: 0 | S86: 0.2593985919 | V86: =IF(I86<>0,MAX(V$7:V85)+1,0) -> 0
A87: 0 | B87: 80 | C87: 1.396263402 | D87: -15.62833599 | E87: 88.63269777 | F87: 78.58686788 | G87: 99.11911865 | H87: 177.7059865 | I87: 0 | J87: 0 | K87: 0 | L87: 0 | M87: 0 | N87: 80 | Q87: 0 | R87: 0 | S87: 0.2896138343 | V87: =IF(I87<>0,MAX(V$7:V86)+1,0) -> 0
A88: 0 | B88: 81 | C88: 1.413716694 | D88: -14.07910185 | E88: 88.89195065 | F88: 77.3415678 | G88: 100.0525251 | H88: 177.3940929 | I88: 0 | J88: 0 | K88: 0 | L88: 0 | M88: 0 | N88: 81 | Q88: 0 | R88: 0 | S88: 0.3197535436 | V88: =IF(I88<>0,MAX(V$7:V87)+1,0) -> 0
A89: 0 | B89: 82 | C89: 1.431169987 | D89: -12.52557909 | E89: 89.12412619 | F89: 76.09138646 | G89: 100.979852 | H89: 177.0712385 | I89: 0 | J89: 0 | K89: 0 | L89: 0 | M89: 0 | N89: 82 | Q89: 0 | R89: 0 | S89: 0.3498202868 | V89: =IF(I89<>0,MAX(V$7:V88)+1,0) -> 0
A90: 0 | B90: 83 | C90: 1.448623279 | D90: -10.96824091 | E90: 89.32915365 | F90: 74.83646964 | G90: 101.9009867 | H90: 176.7374563 | I90: 0 | J90: 0 | K90: 0 | L90: 0 | M90: 0 | N90: 83 | Q90: 0 | R90: 0 | S90: 0.3798165238 | V90: =IF(I90<>0,MAX(V$7:V89)+1,0) -> 0
A91: 0 | B91: 84 | C91: 1.466076572 | D91: -9.407561694 | E91: 89.50697058 | F91: 73.57696707 | G91: 102.8158188 | H91: 176.3927859 | I91: 0 | J91: 0 | K91: 0 | L91: 0 | M91: 0 | N91: 84 | Q91: 0 | R91: 0 | S91: 0.4097446134 | V91: =IF(I91<>0,MAX(V$7:V90)+1,0) -> 0
A92: 0 | B92: 85 | C92: 1.483529864 | D92: -7.844016847 | E92: 89.65752283 | F92: 72.31303286 | G92: 103.7242401 | H92: 176.0372729 | I92: 0 | J92: 0 | K92: 0 | L92: 0 | M92: 0 | N92: 85 | Q92: 0 | R92: 0 | S92: 0.4396068182 | V92: =IF(I92<>0,MAX(V$7:V91)+1,0) -> 0
A93: 0 | B93: 86 | C93: 1.500983157 | D93: -6.278082637 | E93: 89.78076452 | F93: 71.04482577 | G93: 104.6261444 | H93: 175.6709701 | I93: 0 | J93: 0 | K93: 0 | L93: 0 | M93: 0 | N93: 86 | Q93: 0 | R93: 0 | S93: 0.4694053091 | V93: =IF(I93<>0,MAX(V$7:V92)+1,0) -> 0
A94: 0 | B94: 87 | C94: 1.518436449 | D94: -4.710236062 | E94: 89.87665813 | F94: 69.77250969 | G94: 105.5214276 | H94: 175.2939372 | I94: 0 | J94: 0 | K94: 0 | L94: 0 | M94: 0 | N94: 87 | Q94: 0 | R94: 0 | S94: 0.4991421705 | V94: =IF(I94<>0,MAX(V$7:V93)+1,0) -> 0
A95: 0 | B95: 88 | C95: 1.535889742 | D95: -3.140954703 | E95: 89.94517443 | F95: 68.49625402 | G95: 106.4099875 | H95: 174.9062415 | I95: 0 | J95: 0 | K95: 0 | L95: 0 | M95: 0 | N95: 88 | Q95: 0 | R95: 0 | S95: 0.5288194038 | V95: =IF(I95<>0,MAX(V$7:V94)+1,0) -> 0
A96: 0 | B96: 89 | C96: 1.553343034 | D96: -1.570716579 | E96: 89.98629256 | F96: 67.21623419 | G96: 107.2917239 | H96: 174.5079581 | I96: 0 | J96: 0 | K96: 0 | L96: 0 | M96: 0 | N96: 89 | Q96: 0 | R96: 0 | S96: 0.5584389321 | V96: =IF(I96<>0,MAX(V$7:V95)+1,0) -> 0
A97: 0 | B97: 90 | C97: 1.570796327 | D97: -5.513168047e-15 | E97: 90 | F97: 65.93263228 | G97: 108.1665383 | H97: 174.0991705 | I97: 0 | J97: 0 | K97: 0 | L97: 0 | M97: 0 | N97: 90 | Q97: 0 | R97: 0 | S97: 0.5880026035 | V97: =IF(I97<>0,MAX(V$7:V96)+1,0) -> 0
A98: 0 | B98: 91 | C98: 1.588249619 | D98: 1.570716579 | E98: 89.98629256 | F98: 64.64563755 | G98: 109.034334 | H98: 173.6799715 | I98: 0 | J98: 0 | K98: 0 | L98: 0 | M98: 0 | N98: 91 | Q98: 0 | R98: 0 | S98: 0.6175121953 | V98: =IF(I98<>0,MAX(V$7:V97)+1,0) -> 0
A99: 0 | B99: 92 | C99: 1.605702912 | D99: 3.140954703 | E99: 89.94517443 | F99: 63.35544724 | G99: 109.8950161 | H99: 173.2504633 | I99: 0 | J99: 0 | K99: 0 | L99: 0 | M99: 0 | N99: 92 | Q99: 0 | R99: 0 | S99: 0.6469694166 | V99: =IF(I99<>0,MAX(V$7:V98)+1,0) -> 0
A100: 0 | B100: 93 | C100: 1.623156204 | D100: 4.710236062 | E100: 89.87665813 | F100: 62.06226735 | G100: 110.7484913 | H100: 172.8107587 | I100: 0 | J100: 0 | K100: 0 | L100: 0 | M100: 0 | N100: 93 | Q100: 0 | R100: 0 | S100: 0.6763759121 | V100: =IF(I100<>0,MAX(V$7:V99)+1,0) -> 0
A101: 0 | B101: 94 | C101: 1.640609497 | D101: 6.278082637 | E101: 89.78076452 | F101: 60.7663135 | G101: 111.594668 | H101: 172.3609815 | I101: 0 | J101: 0 | K101: 0 | L101: 0 | M101: 0 | N101: 94 | Q101: 0 | R101: 0 | S101: 0.7057332652 | V101: =IF(I101<>0,MAX(V$7:V100)+1,0) -> 0
A102: 0 | B102: 95 | C102: 1.658062789 | D102: 7.844016847 | E102: 89.65752283 | F102: 59.46781202 | G102: 112.433456 | H102: 171.901268 | I102: 0 | J102: 0 | K102: 0 | L102: 0 | M102: 0 | N102: 95 | Q102: 0 | R102: 0 | S102: 0.7350430003 | V102: =IF(I102<>0,MAX(V$7:V101)+1,0) -> 0
A103: 0 | B103: 96 | C103: 1.675516082 | D103: 9.407561694 | E103: 89.50697058 | F103: 58.16700111 | G103: 113.2647668 | H103: 171.4317679 | I103: 0 | J103: 0 | K103: 0 | L103: 0 | M103: 0 | N103: 96 | Q103: 0 | R103: 0 | S103: 0.7643065861 | V103: =IF(I103<>0,MAX(V$7:V102)+1,0) -> 0
A104: 0 | B104: 97 | C104: 1.692969374 | D104: 10.96824091 | E104: 89.32915365 | F104: 56.86413211 | G104: 114.0885135 | H104: 170.9526456 | I104: 0 | J104: 0 | K104: 0 | L104: 0 | M104: 0 | N104: 97 | Q104: 0 | R104: 0 | S104: 0.793525438 | V104: =IF(I104<>0,MAX(V$7:V103)+1,0) -> 0
A105: 0 | B105: 98 | C105: 1.710422667 | D105: 12.52557909 | E105: 89.12412619 | F105: 55.55947108 | G105: 114.9046104 | H105: 170.4640815 | I105: 0 | J105: 0 | K105: 0 | L105: 0 | M105: 0 | N105: 98 | Q105: 0 | R105: 0 | S105: 0.8227009204 | V105: =IF(I105<>0,MAX(V$7:V104)+1,0) -> 0
A106: 0 | B106: 99 | C106: 1.727875959 | D106: 14.07910185 | E106: 88.89195065 | F106: 54.25330049 | G106: 115.7129734 | H106: 169.9662739 | I106: 0 | J106: 0 | K106: 0 | L106: 0 | M106: 0 | N106: 99 | Q106: 0 | R106: 0 | S106: 0.8518343492 | V106: =IF(I106<>0,MAX(V$7:V105)+1,0) -> 0
A107: 0 | B107: 100 | C107: 1.745329252 | D107: 15.62833599 | E107: 88.63269777 | F107: 52.94592124 | G107: 116.5135199 | H107: 169.4594411 | I107: 0 | J107: 0 | K107: 0 | L107: 0 | M107: 0 | N107: 100 | Q107: 0 | R107: 0 | S107: 0.8809269937 | V107: =IF(I107<>0,MAX(V$7:V106)+1,0) -> 0
A108: 0 | B108: 101 | C108: 1.762782545 | D108: 17.17280958 | E108: 88.34644651 | F108: 51.63765489 | G108: 117.3061684 | H108: 168.9438233 | I108: 0 | J108: 0 | K108: 0 | L108: 0 | M108: 0 | N108: 101 | Q108: 0 | R108: 0 | S108: 0.9099800791 | V108: =IF(I108<>0,MAX(V$7:V107)+1,0) -> 0
A109: 0 | B109: 102 | C109: 1.780235837 | D109: 18.71205217 | E109: 88.03328407 | F109: 50.32884631 | G109: 118.090839 | H109: 168.4196853 | I109: 0 | J109: 0 | K109: 0 | L109: 0 | M109: 0 | N109: 102 | Q109: 0 | R109: 0 | S109: 0.9389947884 | V109: =IF(I109<>0,MAX(V$7:V108)+1,0) -> 0
A110: 0 | B110: 103 | C110: 1.79768913 | D110: 20.24559489 | E110: 87.69330583 | F110: 49.01986671 | G110: 118.867453 | H110: 167.8873197 | I110: 0 | J110: 0 | K110: 0 | L110: 0 | M110: 0 | N110: 103 | Q110: 0 | R110: 0 | S110: 0.9679722637 | V110: =IF(I110<>0,MAX(V$7:V109)+1,0) -> 0
A111: 0 | B111: 104 | C111: 1.815142422 | D111: 21.7729706 | E111: 87.32661536 | F111: 47.71111717 | G111: 119.635933 | H111: 167.3470502 | I111: 0 | J111: 0 | K111: 0 | L111: 0 | M111: 0 | N111: 104 | Q111: 0 | R111: 0 | S111: 0.9969136089 | V111: =IF(I111<>0,MAX(V$7:V110)+1,0) -> 0
A112: 0 | B112: 105 | C112: 1.832595715 | D112: 23.29371406 | E112: 86.93332437 | F112: 46.40303267 | G112: 120.396203 | H112: 166.7992356 | I112: 0 | J112: 0 | K112: 0 | L112: 0 | M112: 0 | N112: 105 | Q112: 0 | R112: 0 | S112: 1.025819891 | V112: =IF(I112<>0,MAX(V$7:V111)+1,0) -> 0
A113: 0 | B113: 106 | C113: 1.850049007 | D113: 24.80736202 | E113: 86.51355263 | F113: 45.09608685 | G113: 121.1481879 | H113: 166.2442748 | I113: 0 | J113: 0 | K113: 0 | L113: 0 | M113: 0 | N113: 106 | Q113: 0 | R113: 0 | S113: 1.05469214 | V113: =IF(I113<>0,MAX(V$7:V112)+1,0) -> 0
A114: 0 | B114: 107 | C114: 1.8675023 | D114: 26.31345343 | E114: 86.06742804 | F114: 43.79079759 | G114: 121.8918144 | H114: 165.682612 | I114: 0 | J114: 0 | K114: 0 | L114: 0 | M114: 0 | N114: 107 | O114: =IF(I114<>0,N114,"") ->  | Q114: 0 | R114: 0 | S114: 1.083531355 | V114: =IF(I114<>0,MAX(V$7:V113)+1,0) -> 0
A115: 0 | B115: 108 | C115: 1.884955592 | D115: 27.81152949 | E115: 85.59508647 | F115: 42.48773348 | G115: 122.6270098 | H115: 165.1147433 | I115: 0 | J115: 0 | K115: 0 | L115: 0 | M115: 0 | N115: 108 | Q115: 0 | R115: 0 | S115: 1.1123385 | V115: =IF(I115<>0,MAX(V$7:V114)+1,0) -> 0
A116: 0 | B116: 109 | C116: 1.902408885 | D116: 29.3011339 | E116: 85.0966718 | F116: 41.18752145 | G116: 123.3537031 | H116: 164.5412246 | I116: 0 | J116: 0 | K116: 0 | L116: 0 | M116: 0 | N116: 109 | Q116: 0 | R116: 0 | S116: 1.14111451 | V116: =IF(I116<>0,MAX(V$7:V115)+1,0) -> 0
A117: 0 | B117: 110 | C117: 1.919862177 | D117: 30.7818129 | E117: 84.57233587 | F117: 39.89085578 | G117: 124.0718242 | H117: 163.9626799 | I117: 0 | J117: 0 | K117: 0 | L117: 0 | M117: 0 | N117: 110 | Q117: 0 | R117: 0 | S117: 1.169860288 | V117: =IF(I117<>0,MAX(V$7:V116)+1,0) -> 0
A118: 0 | B118: 111 | C118: 1.93731547 | D118: 32.25311546 | E118: 84.02223838 | F118: 38.59850871 | G118: 124.7813041 | H118: 163.3798128 | I118: 0 | J118: 0 | K118: 0 | L118: 0 | M118: 0 | N118: 111 | Q118: 0 | R118: 0 | S118: 1.198576711 | V118: =IF(I118<>0,MAX(V$7:V117)+1,0) -> 0
A119: 0 | B119: 112 | C119: 1.954768762 | D119: 33.71459341 | E119: 83.44654691 | F119: 37.31134307 | G119: 125.4820752 | H119: 162.7934183 | I119: 0 | J119: 0 | K119: 0 | L119: 0 | M119: 0 | N119: 112 | Q119: 0 | R119: 0 | S119: 1.227264627 | V119: =IF(I119<>0,MAX(V$7:V118)+1,0) -> 0
A120: 0 | B120: 113 | C120: 1.972222055 | D120: 35.16580156 | E120: 82.84543681 | F120: 36.0303272 | G120: 126.174071 | H120: 162.2043982 | I120: 0 | J120: 0 | K120: 0 | L120: 0 | M120: 0 | N120: 113 | Q120: 0 | R120: 0 | S120: 1.255924859 | V120: =IF(I120<>0,MAX(V$7:V119)+1,0) -> 0
A121: 0 | B121: 114 | C121: 1.989675347 | D121: 36.60629788 | E121: 82.21909119 | F121: 34.75655281 | G121: 126.8572258 | H121: 161.6137786 | I121: 0 | J121: 0 | K121: 0 | L121: 0 | M121: 0 | N121: 114 | Q121: 0 | R121: 0 | S121: 1.284558204 | V121: =IF(I121<>0,MAX(V$7:V120)+1,0) -> 0
A122: 0 | B122: 115 | C122: 2.00712864 | D122: 38.03564356 | E122: 81.56770083 | F122: 33.49125621 | G122: 127.5314754 | H122: 161.0227316 | I122: 0 | J122: 0 | K122: 0 | L122: 0 | M122: 0 | N122: 115 | Q122: 0 | R122: 0 | S122: 1.313165436 | V122: =IF(I122<>0,MAX(V$7:V121)+1,0) -> 0
A123: 0 | B123: 116 | C123: 2.024581932 | D123: 39.45340321 | E123: 80.89146417 | F123: 32.23584371 | G123: 128.1967565 | H123: 160.4326002 | I123: 0 | J123: 0 | K123: 0 | L123: 0 | M123: 0 | N123: 116 | Q123: 0 | R123: 0 | S123: 1.341747305 | V123: =IF(I123<>0,MAX(V$7:V122)+1,0) -> 0
A124: 0 | B124: 117 | C124: 2.042035225 | D124: 40.85914498 | E124: 80.19058718 | F124: 30.991922 | G124: 128.8530069 | H124: 159.8449289 | I124: 0 | J124: 0 | K124: 0 | L124: 0 | M124: 0 | N124: 117 | Q124: 0 | R124: 0 | S124: 1.370304539 | V124: =IF(I124<>0,MAX(V$7:V123)+1,0) -> 0
A125: 0 | B125: 118 | C125: 2.059488517 | D125: 42.25244065 | E125: 79.46528336 | F125: 29.76133448 | G125: 129.5001656 | H125: 159.2615 | I125: 0 | J125: 0 | K125: 0 | L125: 0 | M125: 0 | N125: 118 | Q125: 0 | R125: 0 | S125: 1.398837846 | V125: =IF(I125<>0,MAX(V$7:V124)+1,0) -> 0
A126: 0 | B126: 119 | C126: 2.07694181 | D126: 43.63286582 | E126: 78.71577364 | F126: 28.54620456 | G126: 130.1381723 | H126: 158.6843769 | I126: 0 | J126: 0 | K126: 0 | L126: 0 | M126: 0 | N126: 119 | Q126: 0 | R126: 0 | S126: 1.427347913 | V126: =IF(I126<>0,MAX(V$7:V125)+1,0) -> 0
A127: 0 | B127: 120 | C127: 2.094395102 | D127: 45 | E127: 77.94228634 | F127: 27.34898727 | G127: 130.7669683 | H127: 158.1159556 | I127: 0 | J127: 0 | K127: 0 | L127: 0 | M127: 0 | N127: 120 | Q127: 0 | R127: 0 | S127: 1.455835406 | V127: =IF(I127<>0,MAX(V$7:V126)+1,0) -> 0
A128: 0 | B128: 121 | C128: 2.111848395 | D128: 46.35342674 | E128: 77.14505706 | F128: 26.17253035 | G128: 131.3864955 | H128: 157.5590259 | I128: 0 | J128: 0 | K128: 0 | L128: 0 | M128: 0 | N128: 121 | Q128: 0 | R128: 0 | S128: 1.484300975 | V128: =IF(I128<>0,MAX(V$7:V127)+1,0) -> 0
A129: 0 | B129: 122 | C129: 2.129301687 | D129: 47.69273378 | E129: 76.32432865 | F129: 25.02014579 | G129: 131.9966971 | H129: 157.0168429 | I129: 0 | J129: 0 | K129: 0 | L129: 0 | M129: 0 | N129: 122 | Q129: 0 | R129: 0 | S129: 1.51274525 | V129: =IF(I129<>0,MAX(V$7:V128)+1,0) -> 0
A130: 0 | B130: 123 | C130: 2.14675498 | D130: 49.01751315 | E130: 75.48035112 | F130: 23.89569261 | G130: 132.5975172 | H130: 156.4932099 | I130: 0 | J130: 0 | K130: 0 | L130: 0 | M130: 0 | N130: 123 | Q130: 0 | R130: 0 | S130: 1.541168845 | V130: =IF(I130<>0,MAX(V$7:V129)+1,0) -> 0
A131: 0 | B131: 124 | C131: 2.164208272 | D131: 50.32736131 | E131: 74.61338153 | F131: 22.80367054 | G131: 133.188901 | H131: 155.9925716 | I131: 0 | J131: 0 | K131: 0 | L131: 0 | M131: 0 | N131: 124 | Q131: 0 | R131: 0 | S131: 1.569572357 | V131: =IF(I131<>0,MAX(V$7:V130)+1,0) -> 0
A132: 0 | B132: 125 | C132: 2.181661565 | D132: 51.62187927 | E132: 73.72368399 | F132: 21.74932237 | G132: 133.7707947 | H132: 155.5201171 | I132: 0 | J132: 0 | K132: 0 | L132: 0 | M132: 0 | N132: 125 | Q132: 0 | R132: 0 | S132: 1.543636288 | V132: =IF(I132<>0,MAX(V$7:V131)+1,0) -> 0
A133: 0 | B133: 126 | C133: 2.199114858 | D133: 52.90067271 | E133: 72.81152949 | F133: 20.73873994 | G133: 134.3431454 | H133: 155.0818854 | I133: 0 | J133: 0 | K133: 0 | L133: 0 | M133: 0 | N133: 126 | Q133: 0 | R133: 0 | S133: 1.515271216 | V133: =IF(I133<>0,MAX(V$7:V132)+1,0) -> 0
A134: 0 | B134: 127 | C134: 2.21656815 | D134: 54.16335208 | E134: 71.8771959 | F134: 19.77896362 | G134: 134.9059015 | H134: 154.6848651 | I134: 0 | J134: 0 | K134: 0 | L134: 0 | M134: 0 | N134: 127 | Q134: 0 | R134: 0 | S134: 1.48692453 | V134: =IF(I134<>0,MAX(V$7:V133)+1,0) -> 0
A135: 0 | B135: 128 | C135: 2.234021443 | D135: =-RADIUS*COS(C135) -> 55.40953278 | E135: =RADIUS*SIN(C135) -> 70.92096782 | F135: =SQRT((D135-BX)^2+((E135-BY)^2)) -> 18.87805795 | G135: =SQRT((D135-AX)^2+(E135-AY)^2) -> 135.459012 | H135: 154.33707 | I135: 0 | J135: =IF(AND(I135=0,I136=1),AX,IF(AND(I134=1,I135=0),BX,IF(I135=1,D135,0))) -> 0 | K135: =IF(AND(I135=0,I136=1),AY,IF(AND(I134=1,I135=0),BY,IF(I135=1,E135,0))) -> 0 | L135: 0 | M135: 0 | N135: 128 | Q135: 0 | R135: 0 | S135: =ASIN(((D135-AX)*RADIUS*SIN(C135)-(E135-AY)*RADIUS*COS(C135))/SQRT((D135-AX)^2+(E135-AY)^2)/RADIUS) -> 1.458595693 | T135: =IF(I135<>0,RADIUS*(1/F135+1/G135)*COS(ABS(S135))-2,"") ->  | U135: =IF(T135<0,"MAXIMUM",IF(T135<>"","MINIMUM","")) ->  | V135: =IF(I135<>0,MAX(V$7:V134)+1,0) -> 0
A136: =V136 -> 0 | B136: =B135+DANG -> 129 | C136: =RADIANS(B136) -> 2.251474735 | D136: 56.63883519 | E136: 69.94313653 | F136: 18.04513654 | G136: 136.0024273 | H136: 154.0475638 | I136: 0 | J136: 0 | K136: 0 | L136: =IF(I136=1,D136,0) -> 0 | M136: 0 | N136: 129 | P136: =IF(I136<>0,H136,"") ->  | Q136: 0 | R136: =IF(I136<>0,E136,0) -> 0 | S136: 1.430284182 | V136: =IF(I136<>0,MAX(V$7:V135)+1,0) -> 0
A137: 0 | B137: 130 | C137: 2.268928028 | D137: 57.85088487 | E137: 68.94399988 | F137: 17.29029822 | G137: 136.5360985 | H137: =G137+F137 -> 153.8263967 | I137: =IF((H137-H136)*(H137-H138)>0,1,0) -> 0 | J137: 0 | K137: 0 | L137: 0 | M137: =IF(I137=1,E137,0) -> 0 | N137: =N136+1 -> 130 | Q137: 0 | R137: 0 | S137: 1.401989486 | V137: =IF(I137<>0,MAX(V$7:V136)+1,0) -> 0
A138: 0 | B138: 131 | C138: 2.28638132 | D138: 59.04531261 | E138: 67.92386222 | F138: 16.62442708 | G138: 137.0599778 | H138: 153.6844049 | I138: 0 | J138: -60 | K138: 0 | L138: 0 | M138: 0 | N138: 131 | Q138: 0 | R138: 0 | S138: 1.373711107 | V138: =IF(I138<>0,MAX(V$7:V137)+1,0) -> 0
A139: 3 | B139: 132 | C139: 2.303834613 | D139: 60.22175457 | E139: 66.88303429 | F139: 16.05880822 | G139: 137.5740184 | H139: 153.6328267 | I139: 1 | J139: 60.22175457 | K139: 66.88303429 | L139: 60.22175457 | M139: 66.88303429 | N139: 132 | O139: 132 | P139: 153.6328267 | Q139: 60.22175457 | R139: 66.88303429 | S139: 1.34544856 | T139: -0.6015462204 | U139: MAXIMUM | V139: =IF(I139<>0,MAX(V$7:V138)+1,0) -> 3
A140: 0 | B140: 133 | C140: 2.321287905 | D140: 61.37985241 | E140: 65.82183315 | F140: 15.60452757 | G140: 138.0781746 | H140: 153.6827021 | I140: 0 | J140: 53.95048503 | K140: 52.09937778 | L140: 0 | M140: 0 | N140: 133 | Q140: 0 | R140: 0 | S140: 1.31720137 | V140: =IF(I140<>0,MAX(V$7:V139)+1,0) -> 0
A141: 0 | B141: 134 | C141: 2.338741198 | D141: 62.51925334 | E141: 64.74058203 | F141: 15.27166773 | G141: 138.5724013 | H141: 153.844069 | I141: 0 | J141: 0 | K141: 0 | L141: 0 | M141: 0 | N141: 134 | Q141: 0 | R141: 0 | S141: 1.288969074 | V141: =IF(I141<>0,MAX(V$7:V140)+1,0) -> 0
A142: 0 | B142: 135 | C142: 2.35619449 | D142: 63.63961031 | E142: 63.63961031 | F142: 15.06838131 | G142: 139.0566548 | H142: 154.1250361 | I142: 0 | J142: 0 | K142: 0 | L142: 0 | M142: 0 | N142: 135 | Q142: 0 | R142: 0 | S142: 1.26075122 | V142: =IF(I142<>0,MAX(V$7:V141)+1,0) -> 0
A143: 0 | B143: 136 | C143: 2.373647783 | D143: 64.74058203 | E143: 62.51925334 | F143: 15 | G143: 139.5308921 | H143: 154.5308921 | I143: 0 | J143: 0 | K143: 0 | L143: 0 | M143: 0 | N143: 136 | Q143: 0 | R143: 0 | S143: 1.232547365 | V143: =IF(I143<>0,MAX(V$7:V142)+1,0) -> 0
A144: 0 | B144: 137 | C144: 2.391101075 | D144: 65.82183315 | E144: 61.37985241 | F144: 15.06838131 | G144: 139.9950713 | H144: 155.0634526 | I144: 0 | J144: 0 | K144: 0 | L144: 0 | M144: 0 | N144: 137 | Q144: 0 | R144: 0 | S144: 1.204357077 | V144: =IF(I144<>0,MAX(V$7:V143)+1,0) -> 0
A145: 0 | B145: 138 | C145: 2.408554368 | D145: 66.88303429 | E145: 60.22175457 | F145: 15.27166773 | G145: 140.4491514 | H145: 155.7208191 | I145: 0 | J145: 0 | K145: 0 | L145: 0 | M145: 0 | N145: 138 | Q145: 0 | R145: 0 | S145: 1.176179932 | V145: =IF(I145<>0,MAX(V$7:V144)+1,0) -> 0
A146: 0 | B146: 139 | C146: 2.42600766 | D146: 67.92386222 | E146: 59.04531261 | F146: 15.60452757 | G146: 140.8930923 | H146: 156.4976199 | I146: 0 | J146: 0 | K146: 0 | L146: 0 | M146: 0 | N146: 139 | Q146: 0 | R146: 0 | S146: 1.148015518 | V146: =IF(I146<>0,MAX(V$7:V145)+1,0) -> 0
A147: 0 | B147: 140 | C147: 2.443460953 | D147: 68.94399988 | E147: 57.85088487 | F147: 16.05880822 | G147: 141.3268551 | H147: 157.3856634 | I147: 0 | J147: 0 | K147: 0 | L147: 0 | M147: 0 | N147: 140 | Q147: 0 | R147: 0 | S147: 1.119863427 | V147: =IF(I147<>0,MAX(V$7:V146)+1,0) -> 0
A148: 0 | B148: 141 | C148: 2.460914245 | D148: 69.94313653 | E148: 56.63883519 | F148: 16.62442708 | G148: 141.7504017 | H148: 158.3748288 | I148: 0 | J148: 0 | K148: 0 | L148: 0 | M148: 0 | N148: 141 | Q148: 0 | R148: 0 | S148: 1.091723265 | V148: =IF(I148<>0,MAX(V$7:V147)+1,0) -> 0
A149: 0 | B149: 142 | C149: 2.478367538 | D149: 70.92096782 | E149: 55.40953278 | F149: 17.29029822 | G149: 142.1636949 | H149: 159.4539931 | I149: 0 | J149: 0 | K149: 0 | L149: 0 | M149: 0 | N149: 142 | Q149: =IF(I149<>0,D149,0) -> 0 | R149: 0 | S149: 1.063594641 | V149: =IF(I149<>0,MAX(V$7:V148)+1,0) -> 0
A150: 0 | B150: 143 | C150: 2.49582083 | D150: 71.8771959 | E150: 54.16335208 | F150: 18.04513654 | G150: 142.5666985 | H150: 160.611835 | I150: 0 | J150: 0 | K150: 0 | L150: 0 | M150: 0 | N150: 143 | Q150: 0 | R150: 0 | S150: 1.035477175 | V150: =IF(I150<>0,MAX(V$7:V149)+1,0) -> 0
A151: 0 | B151: 144 | C151: 2.513274123 | D151: 72.81152949 | E151: 52.90067271 | F151: 18.87805795 | G151: 142.9593772 | H151: 161.8374352 | I151: 0 | J151: 0 | K151: 0 | L151: 0 | M151: 0 | N151: 144 | Q151: 0 | R151: 0 | S151: 1.007370493 | V151: =IF(I151<>0,MAX(V$7:V150)+1,0) -> 0
A152: 0 | B152: 145 | C152: 2.530727415 | D152: 73.72368399 | E152: 51.62187927 | F152: 19.77896362 | G152: 143.3416969 | H152: 163.1206606 | I152: 0 | J152: 0 | K152: 0 | L152: 0 | M152: 0 | N152: 145 | Q152: 0 | R152: 0 | S152: 0.9792742275 | V152: =IF(I152<>0,MAX(V$7:V151)+1,0) -> 0
A153: 0 | B153: 146 | C153: 2.548180708 | D153: 74.61338153 | E153: 50.32736131 | F153: 20.73873994 | G153: 143.7136242 | H153: 164.4523642 | I153: 0 | J153: 0 | K153: 0 | L153: 0 | M153: 0 | N153: 146 | Q153: 0 | R153: 0 | S153: 0.9511880199 | V153: =IF(I153<>0,MAX(V$7:V152)+1,0) -> 0
A154: 0 | B154: 147 | C154: 2.565634 | D154: 75.48035112 | E154: 49.01751315 | F154: 21.74932237 | G154: 144.0751267 | H154: 165.8244491 | I154: 0 | J154: 0 | K154: 0 | L154: 0 | M154: 0 | N154: 147 | Q154: 0 | R154: 0 | S154: 0.9231115163 | V154: =IF(I154<>0,MAX(V$7:V153)+1,0) -> 0
A155: 0 | B155: 148 | C155: 2.583087293 | D155: 76.32432865 | E155: 47.69273378 | F155: 22.80367054 | G155: 144.426173 | H155: 167.2298435 | I155: 0 | J155: 0 | K155: 0 | L155: 0 | M155: 0 | N155: 148 | Q155: 0 | R155: 0 | S155: 0.8950443698 | V155: =IF(I155<>0,MAX(V$7:V154)+1,0) -> 0
A156: 0 | B156: 149 | C156: 2.600540585 | D156: 77.14505706 | E156: 46.35342674 | F156: 23.89569261 | G156: 144.7667325 | H156: 168.6624251 | I156: 0 | J156: 0 | K156: 0 | L156: 0 | M156: 0 | N156: 149 | Q156: 0 | R156: 0 | S156: 0.8669862391 | V156: =IF(I156<>0,MAX(V$7:V155)+1,0) -> 0
A157: 0 | B157: 150 | C157: 2.617993878 | D157: 77.94228634 | E157: 45 | F157: 25.02014579 | G157: 145.0967758 | H157: 170.1169216 | I157: 0 | J157: 0 | K157: 0 | L157: 0 | M157: 0 | N157: 150 | Q157: 0 | R157: 0 | S157: 0.8389367891 | V157: =IF(I157<>0,MAX(V$7:V156)+1,0) -> 0
A158: 0 | B158: 151 | C158: 2.635447171 | D158: 78.71577364 | E158: 43.63286582 | F158: 26.17253035 | G158: 145.4162743 | H158: 171.5888047 | I158: 0 | J158: 0 | K158: 0 | L158: 0 | M158: 0 | N158: 151 | Q158: 0 | R158: 0 | S158: 0.8108956897 | V158: =IF(I158<>0,MAX(V$7:V157)+1,0) -> 0
A159: 0 | B159: 152 | C159: 2.652900463 | D159: 79.46528336 | E159: 42.25244065 | F159: 27.34898727 | G159: 145.7252003 | H159: 173.0741876 | I159: 0 | J159: 0 | K159: 0 | L159: 0 | M159: 0 | N159: 152 | Q159: 0 | R159: 0 | S159: 0.7828626164 | V159: =IF(I159<>0,MAX(V$7:V158)+1,0) -> 0
A160: 0 | B160: 153 | C160: 2.670353756 | D160: 80.19058718 | E160: 40.85914498 | F160: 28.54620456 | G160: 146.0235271 | H160: 174.5697316 | I160: 0 | J160: 0 | K160: 0 | L160: 0 | M160: 0 | N160: 153 | Q160: 0 | R160: 0 | S160: 0.7548372495 | V160: =IF(I160<>0,MAX(V$7:V159)+1,0) -> 0
A161: 0 | B161: 154 | C161: 2.687807048 | D161: 80.89146417 | E161: 39.45340321 | F161: 29.76133448 | G161: 146.3112289 | H161: 176.0725634 | I161: 0 | J161: 0 | K161: 0 | L161: 0 | M161: 0 | N161: 154 | Q161: 0 | R161: 0 | S161: 0.7268192743 | V161: =IF(I161<>0,MAX(V$7:V160)+1,0) -> 0
A162: 0 | B162: 155 | C162: 2.705260341 | D162: 81.56770083 | E162: 38.03564356 | F162: 30.991922 | G162: 146.5882809 | H162: 177.5802029 | I162: 0 | J162: 0 | K162: 0 | L162: 0 | M162: 0 | N162: 155 | Q162: 0 | R162: 0 | S162: 0.6988083803 | V162: =IF(I162<>0,MAX(V$7:V161)+1,0) -> 0
A163: 0 | B163: 156 | C163: 2.722713633 | D163: 82.21909119 | E163: 36.60629788 | F163: 32.23584371 | G163: 146.8546592 | H163: 179.090503 | I163: 0 | J163: 0 | K163: 0 | L163: 0 | M163: 0 | N163: 156 | Q163: 0 | R163: 0 | S163: 0.6708042618 | V163: =IF(I163<>0,MAX(V$7:V162)+1,0) -> 0
A164: 0 | B164: 157 | C164: 2.740166926 | D164: 82.84543681 | E164: 35.16580156 | F164: 33.49125621 | G164: 147.110341 | H164: 180.6015972 | I164: 0 | J164: 0 | K164: 0 | L164: 0 | M164: 0 | N164: 157 | Q164: 0 | R164: 0 | S164: 0.6428066169 | V164: =IF(I164<>0,MAX(V$7:V163)+1,0) -> 0
A165: 0 | B165: 158 | C165: 2.757620218 | D165: 83.44654691 | E165: 33.71459341 | F165: 34.75655281 | G165: 147.355304 | H165: 182.1118569 | I165: 0 | J165: 0 | K165: 0 | L165: 0 | M165: 0 | N165: 158 | Q165: 0 | R165: 0 | S165: 0.6148151476 | V165: =IF(I165<>0,MAX(V$7:V164)+1,0) -> 0
A166: 0 | B166: 159 | C166: 2.775073511 | D166: 84.02223838 | E166: 32.25311546 | F166: 36.0303272 | G166: 147.5895274 | H166: 183.6198546 | I166: 0 | J166: 0 | K166: 0 | L166: 0 | M166: 0 | N166: 159 | Q166: 0 | R166: 0 | S166: 0.58682956 | V166: =IF(I166<>0,MAX(V$7:V165)+1,0) -> 0
A167: 0 | B167: 160 | C167: 2.792526803 | D167: 84.57233587 | E167: 30.7818129 | F167: 37.31134307 | G167: 147.812991 | H167: 185.1243341 | I167: 0 | J167: 0 | K167: 0 | L167: 0 | M167: 0 | N167: 160 | Q167: 0 | R167: 0 | S167: 0.5588495634 | V167: =IF(I167<>0,MAX(V$7:V166)+1,0) -> 0
A168: 0 | B168: 161 | C168: 2.809980096 | D168: 85.0966718 | E168: 29.3011339 | F168: 38.59850871 | G168: 148.0256755 | H168: 186.6241842 | I168: 0 | J168: 0 | K168: 0 | L168: 0 | M168: 0 | N168: 161 | Q168: 0 | R168: 0 | S168: 0.5308748705 | V168: =IF(I168<>0,MAX(V$7:V167)+1,0) -> 0
A169: 0 | B169: 162 | C169: 2.827433388 | D169: 85.59508647 | E169: 27.81152949 | F169: 39.89085578 | G169: 148.2275628 | H169: 188.1184186 | I169: 0 | J169: 0 | K169: 0 | L169: 0 | M169: 0 | N169: 162 | Q169: 0 | R169: 0 | S169: 0.5029051973 | V169: =IF(I169<>0,MAX(V$7:V168)+1,0) -> 0
A170: 0 | B170: 163 | C170: 2.844886681 | D170: 86.06742804 | E170: 26.31345343 | F170: 41.18752145 | G170: 148.4186355 | H170: 189.606157 | I170: 0 | J170: 0 | K170: 0 | L170: 0 | M170: 0 | N170: 163 | Q170: 0 | R170: 0 | S170: 0.4749402628 | V170: =IF(I170<>0,MAX(V$7:V169)+1,0) -> 0
A171: 0 | B171: 164 | C171: 2.862339973 | D171: 86.51355263 | E171: 24.80736202 | F171: 42.48773348 | G171: 148.5988772 | H171: 191.0866107 | I171: 0 | J171: 0 | K171: 0 | L171: 0 | M171: 0 | N171: 164 | Q171: 0 | R171: 0 | S171: 0.4469797885 | V171: =IF(I171<>0,MAX(V$7:V170)+1,0) -> 0
A172: 0 | B172: 165 | C172: 2.879793266 | D172: 86.93332437 | E172: 23.29371406 | F172: 43.79079759 | G172: 148.7682726 | H172: 192.5590702 | I172: 0 | J172: 0 | K172: 0 | L172: 0 | M172: 0 | N172: 165 | Q172: 0 | R172: 0 | S172: 0.4190234988 | V172: =IF(I172<>0,MAX(V$7:V171)+1,0) -> 0
A173: 0 | B173: 166 | C173: 2.897246558 | D173: 87.32661536 | E173: 21.7729706 | F173: 45.09608685 | G173: 148.926807 | H173: 194.0228938 | I173: 0 | J173: 0 | K173: 0 | L173: 0 | M173: 0 | N173: 166 | Q173: 0 | R173: 0 | S173: 0.3910711206 | V173: =IF(I173<>0,MAX(V$7:V172)+1,0) -> 0
A174: 0 | B174: 167 | C174: 2.914699851 | D174: 87.69330583 | E174: 20.24559489 | F174: 46.40303267 | G174: 149.074467 | H174: 195.4774996 | I174: 0 | J174: 0 | K174: 0 | L174: 0 | M174: 0 | N174: 167 | Q174: 0 | R174: 0 | S174: 0.3631223829 | V174: =IF(I174<>0,MAX(V$7:V173)+1,0) -> 0
A175: 0 | B175: 168 | C175: 2.932153143 | D175: 88.03328407 | E175: 18.71205217 | F175: 47.71111717 | G175: 149.2112398 | H175: 196.922357 | I175: 0 | J175: 0 | K175: 0 | L175: 0 | M175: 0 | N175: 168 | Q175: 0 | R175: 0 | S175: 0.335177017 | V175: =IF(I175<>0,MAX(V$7:V174)+1,0) -> 0
A176: 0 | B176: 169 | C176: 2.949606436 | D176: 88.34644651 | E176: 17.17280958 | F176: 49.01986671 | G176: 149.3371139 | H176: 198.3569806 | I176: 0 | J176: 0 | K176: 0 | L176: 0 | M176: 0 | N176: 169 | Q176: 0 | R176: 0 | S176: 0.3072347561 | V176: =IF(I176<>0,MAX(V$7:V175)+1,0) -> 0
A177: 0 | B177: 170 | C177: 2.967059728 | D177: 88.63269777 | E177: 15.62833599 | F177: 50.32884631 | G177: 149.4520784 | H177: 199.7809247 | I177: 0 | J177: 0 | K177: 0 | L177: 0 | M177: 0 | N177: 170 | Q177: 0 | R177: 0 | S177: 0.2792953351 | V177: =IF(I177<>0,MAX(V$7:V176)+1,0) -> 0
A178: 0 | B178: 171 | C178: 2.984513021 | D178: 88.89195065 | E178: 14.07910185 | F178: 51.63765489 | G178: 149.5561235 | H178: 201.1937784 | I178: 0 | J178: 0 | K178: 0 | L178: 0 | M178: 0 | N178: 171 | O178: =IF(I178<>0,N178,"") ->  | Q178: 0 | R178: 0 | S178: 0.2513584906 | V178: =IF(I178<>0,MAX(V$7:V177)+1,0) -> 0
A179: 0 | B179: 172 | C179: 3.001966313 | D179: 89.12412619 | E179: 12.52557909 | F179: 52.94592124 | G179: 149.6492404 | H179: 202.5951616 | I179: 0 | J179: 0 | K179: 0 | L179: 0 | M179: 0 | N179: 172 | Q179: 0 | R179: 0 | S179: 0.2234239609 | V179: =IF(I179<>0,MAX(V$7:V178)+1,0) -> 0
A180: 0 | B180: 173 | C180: 3.019419606 | D180: 89.32915365 | E180: 10.96824091 | F180: 54.25330049 | G180: 149.731421 | H180: 203.9847215 | I180: 0 | J180: 0 | K180: 0 | L180: 0 | M180: 0 | N180: 173 | Q180: 0 | R180: 0 | S180: 0.1954914854 | V180: =IF(I180<>0,MAX(V$7:V179)+1,0) -> 0
A181: 0 | B181: 174 | C181: 3.036872898 | D181: 89.50697058 | E181: 9.407561694 | F181: 55.55947108 | G181: 149.8026584 | H181: 205.3621295 | I181: 0 | J181: 0 | K181: 0 | L181: 0 | M181: 0 | N181: 174 | Q181: 0 | R181: 0 | S181: 0.1675608047 | V181: =IF(I181<>0,MAX(V$7:V180)+1,0) -> 0
A182: 0 | B182: 175 | C182: 3.054326191 | D182: 89.65752283 | E182: 7.844016847 | F182: 56.86413211 | G182: 149.8629465 | H182: 206.7270786 | I182: 0 | J182: 0 | K182: 0 | L182: 0 | M182: 0 | N182: 175 | Q182: 0 | R182: 0 | S182: 0.1396316605 | V182: =IF(I182<>0,MAX(V$7:V181)+1,0) -> 0
A183: 0 | B183: 176 | C183: 3.071779484 | D183: 89.78076452 | E183: 6.278082637 | F183: 58.16700111 | G183: 149.9122802 | H183: 208.0792813 | I183: 0 | J183: 0 | K183: 0 | L183: 0 | M183: 0 | N183: 176 | Q183: 0 | R183: 0 | S183: 0.1117037955 | V183: =IF(I183<>0,MAX(V$7:V182)+1,0) -> 0
A184: 0 | B184: 177 | C184: 3.089232776 | D184: 89.87665813 | E184: 4.710236062 | F184: 59.46781202 | G184: 149.9506551 | H184: 209.4184672 | I184: 0 | J184: 0 | K184: 0 | L184: 0 | M184: 0 | N184: 177 | Q184: 0 | R184: 0 | S184: 0.08377695277 | V184: =IF(I184<>0,MAX(V$7:V183)+1,0) -> 0
A185: 0 | B185: 178 | C185: 3.106686069 | D185: 89.94517443 | E185: 3.140954703 | F185: 60.7663135 | G185: 149.9780682 | H185: 210.7443817 | I185: 0 | J185: 0 | K185: 0 | L185: 0 | M185: 0 | N185: 178 | Q185: 0 | R185: 0 | S185: 0.05585087636 | V185: =IF(I185<>0,MAX(V$7:V184)+1,0) -> 0
A186: 0 | B186: 179 | C186: 3.124139361 | D186: 89.98629256 | E186: 1.570716579 | F186: 62.06226735 | G186: 149.9945169 | H186: 212.0567843 | I186: 0 | J186: 0 | K186: 0 | L186: 0 | M186: 0 | N186: 179 | Q186: 0 | R186: 0 | S186: 0.02792531057 | V186: =IF(I186<>0,MAX(V$7:V185)+1,0) -> 0
A187: 0 | B187: 180 | C187: 3.141592654 | D187: 90 | E187: 1.102633609e-14 | F187: 63.35544724 | G187: 150 | H187: 213.3554472 | I187: 0 | J187: 0 | K187: 0 | L187: 0 | M187: 0 | N187: 180 | Q187: 0 | R187: 0 | S187: 1.960237528e-16 | V187: =IF(I187<>0,MAX(V$7:V186)+1,0) -> 0
A188: 0 | B188: 181 | C188: 3.159045946 | D188: 89.98629256 | E188: -1.570716579 | F188: 64.64563755 | G188: 149.9945169 | H188: 214.6401545 | I188: 0 | J188: 0 | K188: 0 | L188: 0 | M188: 0 | N188: 181 | Q188: 0 | R188: 0 | S188: -0.02792531057 | V188: =IF(I188<>0,MAX(V$7:V187)+1,0) -> 0
A189: 0 | B189: 182 | C189: 3.176499239 | D189: 89.94517443 | E189: -3.140954703 | F189: 65.93263228 | G189: 149.9780682 | H189: 215.9107004 | I189: 0 | J189: 0 | K189: 0 | L189: 0 | M189: 0 | N189: 182 | Q189: 0 | R189: 0 | S189: -0.05585087636 | V189: =IF(I189<>0,MAX(V$7:V188)+1,0) -> 0
A190: 0 | B190: 183 | C190: 3.193952531 | D190: 89.87665813 | E190: -4.710236062 | F190: 67.21623419 | G190: 149.9506551 | H190: 217.1668893 | I190: 0 | J190: 0 | K190: 0 | L190: 0 | M190: 0 | N190: 183 | Q190: 0 | R190: 0 | S190: -0.08377695277 | V190: =IF(I190<>0,MAX(V$7:V189)+1,0) -> 0
A191: 0 | B191: 184 | C191: 3.211405824 | D191: 89.78076452 | E191: -6.278082637 | F191: 68.49625402 | G191: 149.9122802 | H191: 218.4085342 | I191: 0 | J191: 0 | K191: 0 | L191: 0 | M191: 0 | N191: 184 | Q191: 0 | R191: 0 | S191: -0.1117037955 | V191: =IF(I191<>0,MAX(V$7:V190)+1,0) -> 0
A192: 0 | B192: 185 | C192: 3.228859116 | D192: 89.65752283 | E192: -7.844016847 | F192: 69.77250969 | G192: 149.8629465 | H192: 219.6354562 | I192: 0 | J192: 0 | K192: 0 | L192: 0 | M192: 0 | N192: 185 | Q192: 0 | R192: 0 | S192: -0.1396316605 | V192: =IF(I192<>0,MAX(V$7:V191)+1,0) -> 0
A193: 0 | B193: 186 | C193: 3.246312409 | D193: 89.50697058 | E193: -9.407561694 | F193: 71.04482577 | G193: 149.8026584 | H193: 220.8474842 | I193: 0 | J193: 0 | K193: 0 | L193: 0 | M193: 0 | N193: 186 | Q193: 0 | R193: 0 | S193: -0.1675608047 | V193: =IF(I193<>0,MAX(V$7:V192)+1,0) -> 0
A194: 0 | B194: 187 | C194: 3.263765701 | D194: 89.32915365 | E194: -10.96824091 | F194: 72.31303286 | G194: 149.731421 | H194: 222.0444539 | I194: 0 | J194: 0 | K194: 0 | L194: 0 | M194: 0 | N194: 187 | Q194: 0 | R194: 0 | S194: -0.1954914854 | V194: =IF(I194<>0,MAX(V$7:V193)+1,0) -> 0
A195: 0 | B195: 188 | C195: 3.281218994 | D195: 89.12412619 | E195: -12.52557909 | F195: 73.57696707 | G195: 149.6492404 | H195: 223.2262074 | I195: 0 | J195: 0 | K195: 0 | L195: 0 | M195: 0 | N195: 188 | Q195: 0 | R195: 0 | S195: -0.2234239609 | V195: =IF(I195<>0,MAX(V$7:V194)+1,0) -> 0
A196: 0 | B196: 189 | C196: 3.298672286 | D196: 88.89195065 | E196: -14.07910185 | F196: 74.83646964 | G196: 149.5561235 | H196: 224.3925931 | I196: 0 | J196: 0 | K196: 0 | L196: 0 | M196: 0 | N196: 189 | Q196: 0 | R196: 0 | S196: -0.2513584906 | V196: =IF(I196<>0,MAX(V$7:V195)+1,0) -> 0
A197: 0 | B197: 190 | C197: 3.316125579 | D197: 88.63269777 | E197: -15.62833599 | F197: 76.09138646 | G197: 149.4520784 | H197: 225.5434648 | I197: 0 | J197: 0 | K197: 0 | L197: 0 | M197: 0 | N197: 190 | Q197: 0 | R197: 0 | S197: -0.2792953351 | V197: =IF(I197<>0,MAX(V$7:V196)+1,0) -> 0
A198: 0 | B198: 191 | C198: 3.333578871 | D198: 88.34644651 | E198: -17.17280958 | F198: 77.3415678 | G198: 149.3371139 | H198: 226.6786817 | I198: 0 | J198: 0 | K198: 0 | L198: 0 | M198: 0 | N198: 191 | Q198: 0 | R198: 0 | S198: -0.3072347561 | V198: =IF(I198<>0,MAX(V$7:V197)+1,0) -> 0
A199: 0 | B199: 192 | C199: 3.351032164 | D199: =-RADIUS*COS(C199) -> 88.03328407 | E199: =RADIUS*SIN(C199) -> -18.71205217 | F199: =SQRT((D199-BX)^2+((E199-BY)^2)) -> 78.58686788 | G199: =SQRT((D199-AX)^2+(E199-AY)^2) -> 149.2112398 | H199: 227.7981077 | I199: 0 | J199: =IF(AND(I199=0,I200=1),AX,IF(AND(I198=1,I199=0),BX,IF(I199=1,D199,0))) -> 0 | K199: =IF(AND(I199=0,I200=1),AY,IF(AND(I198=1,I199=0),BY,IF(I199=1,E199,0))) -> 0 | L199: 0 | M199: 0 | N199: 192 | Q199: 0 | R199: 0 | S199: =ASIN(((D199-AX)*RADIUS*SIN(C199)-(E199-AY)*RADIUS*COS(C199))/SQRT((D199-AX)^2+(E199-AY)^2)/RADIUS) -> -0.335177017 | T199: =IF(I199<>0,RADIUS*(1/F199+1/G199)*COS(ABS(S199))-2,"") ->  | U199: =IF(T199<0,"MAXIMUM",IF(T199<>"","MINIMUM","")) ->  | V199: =IF(I199<>0,MAX(V$7:V198)+1,0) -> 0
A200: =V200 -> 0 | B200: =B199+DANG -> 193 | C200: =RADIANS(B200) -> 3.368485456 | D200: 87.69330583 | E200: -20.24559489 | F200: 79.82714468 | G200: 149.074467 | H200: 228.9016116 | I200: 0 | J200: 0 | K200: 0 | L200: =IF(I200=1,D200,0) -> 0 | M200: 0 | N200: 193 | P200: =IF(I200<>0,H200,"") ->  | Q200: 0 | R200: =IF(I200<>0,E200,0) -> 0 | S200: -0.3631223829 | V200: =IF(I200<>0,MAX(V$7:V199)+1,0) -> 0
... 166 more rows

Sheet Αναφορά συμβατότητας
B1: Αναφορά συμβατότητας για το al HaythammakrosLHPSI.xls
B2: Εκτέλεση σε 13/4/2013 21:45
B4: Οι παρακάτω δυνατότητες σε αυτό το βιβλίο εργασίας δεν υποστηρίζονται από προηγούμενες εκδόσεις του Excel. Οι δυνατότητες αυτές μπορεί να χαθούν ή να υποβαθμιστούν, όταν ανοίξετε αυτό το βιβλίο εργασίας σε προηγούμενη έκδοση του Excel ή εάν αποθηκεύσετε αυτό το βιβλίο εργασίας σε παλαιότερη μορφή αρχείου.
B6: Μικρή απώλεια πιστότητας | E6: Αρ. εμφανίσεων | F6: Έκδοση
B8: Ορισμένα κελιά ή στυλ σε αυτό το βιβλίο εργασίας περιέχουν μορφοποίηση που δεν υποστηρίζεται από την επιλεγμένη μορφή αρχείου. Αυτές οι μορφές θα μετατραπούν στην πλησιέστερη διαθέσιμη μορφή. | E8: 3 | F8: Excel 97-2003
